fUSD/lending_fUSD_20240624
["ID","MTS","AMOUNT","RATE_DAILY","PERIOD"]
[330332519,1719259916678,-500.0,0.00043835,120]
[330332520,1719259916706,-2014.73,0.00043835,120]
[330332521,1719259916732,-500.0,0.00043835,120]
[330332522,1719259916759,-500.0,0.00043835,120]
[330332523,1719259916785,-500.0,0.00043835,120]
[330332524,1719259916812,-500.0,0.00043835,120]
[330332525,1719259916840,-500.0,0.00043835,120]
[330332526,1719259916867,-569.1,0.00043835,120]
[330332527,1719259916894,-1200.09,0.00043835,120]
[330332528,1719259916921,-500.0,0.00043835,120]
[330332529,1719259916951,-500.0,0.00043835,120]
[330332530,1719259916979,-500.0,0.00043835,120]
[330332531,1719259917006,-500.0,0.00043835,120]
[330332532,1719259917033,-500.0,0.00043835,120]
[330332533,1719259917060,-500.0,0.00043835,120]
[330332534,1719259917088,-685.64,0.00043835,120]
[330332535,1719259917114,-500.0,0.00043835,120]
[330332536,1719259917142,-500.0,0.00043835,120]
[330332537,1719259917167,-1065.13,0.00043835,120]
[330332538,1719259917200,-500.0,0.00043835,120]
[330332539,1719259917227,-500.0,0.00043835,120]
[330332540,1719259917253,-678.86,0.00043835,120]
[330332541,1719259917280,-500.0,0.00043835,120]
[330332542,1719259917306,-513.9,0.00043835,120]
[330332543,1719259917333,-500.0,0.00043835,120]
[330332544,1719259917359,-555.02,0.00043835,120]
[330332545,1719259917385,-500.0,0.00043835,120]
[330332546,1719259917410,-500.0,0.00043835,120]
[330332547,1719259917440,-4089.97,0.00043835,120]
[330332548,1719259917465,-500.0,0.00043835,120]
[330332549,1719259917490,-500.0,0.00043835,120]
[330332550,1719259917515,-793.42,0.00043835,120]
[330332551,1719259917542,-508.5,0.00043835,120]
[330332552,1719259917566,-500.0,0.00043835,120]
[330332553,1719259917592,-500.0,0.00043835,120]
[330332554,1719259917617,-500.0,0.00043835,120]
[330332555,1719259917644,-500.0,0.00043835,120]
[330332556,1719259917670,-500.0,0.00043835,120]
[330332557,1719259917698,-3563.57,0.00043835,120]
[330332558,1719259917723,-574.04010407,0.00043835,120]
[330332559,1719259917749,-1837.16,0.00043835,120]
[330332560,1719259918009,-538.5,0.00043835,120]
[330332561,1719259918035,-500.0,0.00043835,120]
[330332562,1719259918059,-602.22,0.00043835,120]
[330332563,1719259918085,-856.63,0.00043835,120]
[330332564,1719259918111,-500.0,0.00043835,120]
[330332565,1719259918136,-5040.46,0.00043835,120]
[330332566,1719259918162,-23673.21,0.00043835,120]
[330332567,1719259918188,-500.0,0.00043835,120]
[330332568,1719259918217,-500.0,0.00043835,120]
[330332569,1719259918246,-500.0,0.00043835,120]
[330332570,1719259918274,-500.0,0.00043835,120]
[330332571,1719259918301,-500.0,0.00043835,120]
[330332572,1719259918326,-620.79416738,0.00043835,120]
[330332573,1719259918352,-500.0,0.00043835,120]
[330332574,1719259918375,-500.0,0.00043835,120]
[330332575,1719259918401,-644.86,0.00043835,120]
[330332576,1719259918428,-1194.97,0.00043835,120]
[330332577,1719259918452,-500.0,0.00043835,120]
[330332578,1719259918480,-500.0,0.00043835,120]
[330332579,1719259918507,-3087.87,0.00043835,120]
[330332580,1719259918531,-500.0,0.00043835,120]
[330332581,1719259918559,-500.0,0.00043835,120]
[330332582,1719259918583,-532.56,0.00043835,120]
[330332583,1719259918609,-1933.05,0.00043835,120]
[330332584,1719259918634,-1047.0,0.00043835,120]
[330332585,1719259918659,-670.97,0.00043835,120]
[330332586,1719259918686,-625.73211199,0.00043835,120]
[330332587,1719259918713,-596.27,0.00043835,120]
[330332588,1719259918739,-500.0,0.00043835,120]
[330332589,1719259918766,-737.47,0.00043835,120]
[330332590,1719259918791,-5601.69,0.00043835,120]
[330332591,1719259918816,-500.0,0.00043835,120]
[330332592,1719259918842,-614.1,0.00043835,120]
[330332593,1719259918868,-8648.49,0.00043835,120]
[330332594,1719259918894,-500.0,0.00043835,120]
[330332595,1719259918919,-500.0,0.00043835,120]
[330332596,1719259918952,-586.45,0.00043835,120]
[330332597,1719259918978,-617.32312635,0.00043835,120]
[330332598,1719259919004,-737.6,0.00043835,120]
[330332599,1719259919030,-500.0,0.00043835,120]
[330332600,1719259919057,-1042.6,0.00043835,120]
[330332601,1719259919084,-500.0,0.00043835,120]
[330332602,1719259919111,-4389.73,0.00043835,120]
[330332603,1719259919136,-500.0,0.00043835,120]
[330332604,1719259919163,-500.0,0.00043835,120]
[330332605,1719259919195,-917.35,0.00043835,120]
[330332606,1719259919228,-894.64,0.00043835,120]
[330332607,1719259919256,-4999.27,0.00043835,120]
[330332608,1719259919282,-735.67,0.00043835,120]
[330332609,1719259919311,-802.65,0.00043835,120]
[330332610,1719259919339,-5870.18,0.00043835,120]
[330332611,1719259919364,-500.0,0.00043835,120]
[330332612,1719259919391,-500.0,0.00043835,120]
[330332613,1719259919421,-500.0,0.00043835,120]
[330332614,1719259919452,-1829.02,0.00043835,120]
[330332615,1719259919477,-699.19,0.00043835,120]
[330332616,1719259919502,-575.29,0.00043835,120]
[330332617,1719259919527,-1043.77,0.00043835,120]
[330332618,1719259919552,-4403.67,0.00043835,120]
[330332619,1719259919577,-500.0,0.00043835,90]
[330332620,1719259919602,-500.0,0.00043835,120]
[330332621,1719259919627,-763.06,0.00043835,120]
[330332622,1719259919651,-500.0,0.00043835,120]
[330332623,1719259919678,-2713.4,0.00043835,120]
[330332624,1719259919707,-709.9,0.00043835,120]
[330332625,1719259919731,-576.1,0.00043835,120]
[330332626,1719259919756,-500.0,0.00043835,120]
[330332627,1719259919781,-500.0,0.00043835,120]
[330332628,1719259919806,-500.0,0.00043835,120]
[330332629,1719259919830,-8968.63,0.00043835,120]
[330332630,1719259919854,-500.0,0.00043835,120]
[330332631,1719259919881,-500.0,0.00043835,120]
[330332632,1719259919909,-37021.68,0.00043835,120]
[330332633,1719259919936,-500.0,0.00043835,120]
[330332634,1719259919960,-500.0,0.00043835,120]
[330332635,1719259919984,-500.0,0.00043835,120]
[330332636,1719259920010,-1097.53,0.00043835,120]
[330332637,1719259920036,-188.82578233,0.00043835,120]
[330332638,1719259920063,-500.0,0.00043835,120]
[330332639,1719259920089,-11437.04,0.00043835,120]
[330332640,1719259920114,-500.0,0.00043835,120]
[330332641,1719259920139,-500.0,0.00043835,120]
[330332642,1719259920165,-584.81981239,0.00043835,120]
[330332643,1719259920197,-500.0,0.00043835,120]
[330332644,1719259920224,-1463.6,0.00043835,120]
[330332645,1719259920250,-595.67,0.00043835,120]
[330332646,1719259920276,-3647.56,0.00043835,120]
[330332647,1719259920302,-916.02,0.00043835,120]
[330332648,1719259920330,-542.12,0.00043835,120]
[330332649,1719259920355,-497.71408387,0.00043835,120]
[330332650,1719259920380,-500.0,0.00043835,120]
[330332651,1719259920405,-620.17,0.00043835,120]
[330332652,1719259920433,-500.0,0.00043835,120]
[330332653,1719259920459,-500.0,0.00043835,120]
[330332654,1719259920486,-4191.77,0.00043835,120]
[330332655,1719259920512,-858.98,0.00043835,120]
[330332656,1719259920538,-5835.72,0.00043835,120]
[330332657,1719259920563,-500.0,0.00043835,120]
[330332658,1719259920589,-810.48,0.00043835,120]
[330332659,1719259920614,-3897.28,0.00043835,120]
[330332660,1719259920639,-500.0,0.00043835,120]
[330332661,1719259920666,-2482.97,0.00043835,120]
[330332662,1719259920692,-12695.45,0.00043835,120]
[330332663,1719259920984,-3195.73,0.00043835,120]
[330332664,1719259921010,-787.95,0.00043835,120]
[330332665,1719259921036,-1253.06,0.00043835,120]
[330332666,1719259921062,-500.0,0.00043835,120]
[330332667,1719259921087,-500.0,0.00043835,120]
[330332668,1719259921114,-519.27534645,0.00043835,120]
[330332669,1719259921140,-500.0,0.00043835,120]
[330332670,1719259921166,-500.0,0.00043835,120]
[330332671,1719259921192,-500.0,0.00043835,120]
[330332672,1719259921224,-2463.45,0.00043835,120]
[330332673,1719259921250,-1110.19,0.00043835,120]
[330332674,1719259921276,-510.30160066,0.00043835,120]
[330332675,1719259921304,-500.0,0.00043835,120]
[330332676,1719259921329,-582.47,0.00043835,120]
[330332677,1719259921354,-500.0,0.00043835,120]
[330332678,1719259921380,-2645.84,0.00043835,120]
[330332679,1719259921410,-500.0,0.00043835,120]
[330332680,1719259921437,-527.31,0.00043835,120]
[330332681,1719259921463,-1350.97,0.00043835,120]
[330332682,1719259921490,-18423.38,0.00043835,120]
[330332683,1719259921516,-5666.44,0.00043835,120]
[330332684,1719259921543,-848.7,0.00043835,120]
[330332685,1719259921568,-500.0,0.00043835,120]
[330332686,1719259921595,-835.24,0.00043835,120]
[330332687,1719259921625,-500.0,0.00043835,120]
[330332688,1719259921653,-889.34,0.00043835,120]
[330332689,1719259921681,-981.02,0.00043835,120]
[330332690,1719259921708,-2138.52,0.00043835,120]
[330332691,1719259921736,-500.0,0.00043835,120]
[330332692,1719259921763,-500.0,0.00043835,120]
[330332693,1719259921792,-1100.43,0.00043835,120]
[330332694,1719259921819,-5817.01,0.00043835,120]
[330332695,1719259921847,-10100.83,0.00043835,120]
[330332696,1719259921873,-6028.84,0.00043835,120]
[330332697,1719259921900,-500.0,0.00043835,120]
[330332698,1719259921930,-1418.66,0.00043835,120]
[330332699,1719259921959,-500.0,0.00043835,120]
[330332700,1719259921985,-500.0,0.00043835,120]
[330332701,1719259922013,-714.06,0.00043835,120]
[330332702,1719259922042,-944.54,0.00043835,120]
[330332703,1719259922070,-500.0,0.00043835,120]
[330332704,1719259922097,-500.0,0.00043835,120]
[330332705,1719259922128,-2075.84,0.00043835,120]
[330332706,1719259922155,-542.47,0.00043835,120]
[330332707,1719259922183,-8060.15,0.00043835,120]
[330332708,1719259922214,-4256.03,0.00043835,120]
[330332709,1719259922242,-500.0,0.00043835,120]
[330332710,1719259922269,-500.0,0.00043835,120]
[330332711,1719259922300,-500.0,0.00043835,120]
[330332712,1719259922328,-19208.55,0.00043835,120]
[330332713,1719259922356,-925.69,0.00043835,120]
[330332714,1719259922384,-991.86,0.00043835,120]
[330332715,1719259922415,-500.0,0.00043835,120]
[330332716,1719259922442,-515.94720768,0.00043835,120]
[330332717,1719259922470,-1147.16,0.00043835,120]
[330332718,1719259922497,-6982.45,0.00043835,120]
[330332719,1719259922524,-10183.11,0.00043835,120]
[330332720,1719259922552,-1030.42,0.00043835,120]
[330332721,1719259922580,-500.0,0.00043835,120]
[330332722,1719259922608,-500.0,0.00043835,120]
[330332723,1719259922638,-500.0,0.00043835,120]
[330332724,1719259922666,-649.66,0.00043835,120]
[330332725,1719259922695,-500.0,0.00043835,120]
[330332726,1719259922725,-500.0,0.00043835,120]
[330332727,1719259922754,-500.0,0.00043835,120]
[330332728,1719259922782,-2501.12,0.00043835,120]
[330332729,1719259922809,-500.0,0.00043835,120]
[330332730,1719259922837,-1122.09,0.00043835,120]
[330332731,1719259922865,-9861.82,0.00043835,120]
[330332732,1719259922892,-1155.29,0.00043835,120]
[330332733,1719259922920,-500.0,0.00043835,120]
[330332734,1719259922948,-9195.57,0.00043835,120]
[330332735,1719259922975,-507.64718998,0.00043835,120]
[330332736,1719259923002,-915.96,0.00043835,120]
[330332737,1719259923029,-1621.76,0.00043835,120]
[330332738,1719259923056,-7935.13,0.00043835,120]
[330332739,1719259923084,-807.12,0.00043835,120]
[330332740,1719259923111,-732.98,0.00043835,120]
[330332741,1719259923138,-14297.31,0.00043835,120]
[330332742,1719259923165,-500.0,0.00043835,120]
[330332743,1719259923192,-500.0,0.00043835,120]
[330332744,1719259923225,-1329.06,0.00043835,120]
[330332745,1719259923254,-524.8,0.00043835,120]
[330332746,1719259923280,-500.0,0.00043835,120]
[330332747,1719259923310,-2185.64,0.00043835,120]
[330332748,1719259923336,-500.0,0.00043835,120]
[330332749,1719259923364,-840.34,0.00043835,120]
[330332750,1719259923393,-11351.76,0.00043835,120]
[330332751,1719259923419,-500.0,0.00043835,120]
[330332752,1719259923455,-500.0,0.00043835,120]
[330332753,1719259923485,-1271.86,0.00043835,120]
[330332754,1719259923515,-500.0,0.00043835,120]
[330332755,1719259923545,-7533.65,0.00043835,120]
[330332756,1719259923574,-1000.0,0.00043835,120]
[330332757,1719259923602,-500.0,0.00043835,120]
[330332758,1719259923630,-500.0,0.00043835,120]
[330332759,1719259923659,-2900.5,0.00043835,120]
[330332760,1719259923687,-4269.23,0.00043835,120]
[330332761,1719259923717,-13424.13,0.00043835,120]
[330332762,1719259923745,-1920.89,0.00043835,120]
[330332763,1719259923771,-824.87,0.00043835,120]
[330332764,1719259923803,-500.0,0.00043835,120]
[330332765,1719259923831,-500.0,0.00043835,120]
[330332766,1719259923858,-3710.53,0.00043835,120]
[330332767,1719259924109,-767.16,0.00043835,120]
[330332768,1719259924139,-1075.52,0.00043835,120]
[330332769,1719259924168,-1119.02,0.00043835,120]
[330332770,1719259924199,-1555.22,0.00043835,120]
[330332771,1719259924232,-2902.92,0.00043835,120]
[330332772,1719259924263,-500.0,0.00043835,120]
[330332773,1719259924296,-257.51,0.00043835,120]
[330332774,1719259924326,-18200.0,0.00043835,120]
[330332775,1719259924354,-500.0,0.00043835,120]
[330332776,1719259924384,-1325.58,0.00043835,120]
[330332777,1719259924412,-850.77,0.00043835,120]
[330332778,1719259924440,-500.0,0.00043835,120]
[330332779,1719259924469,-500.0,0.00043835,120]
[330332780,1719259924503,-500.0,0.00043835,120]
[330332781,1719259924532,-5694.63,0.00043835,120]
[330332782,1719259924561,-500.0,0.00043835,120]
[330332783,1719259924590,-500.0,0.00043835,120]
[330332784,1719259924618,-620.82,0.00043835,120]
[330332785,1719259924647,-4418.13,0.00043835,120]
[330332786,1719259924675,-500.0,0.00043835,120]
[330332787,1719259924705,-500.0,0.00043835,120]
[330332788,1719259924732,-1578.28,0.00043835,120]
[330332789,1719259924759,-1538.01,0.00043835,120]
[330332790,1719259924786,-1018.73,0.00043835,120]
[330332791,1719259924813,-500.0,0.00043835,120]
[330332792,1719259924840,-586.2,0.00043835,120]
[330332793,1719259924867,-728.27,0.00043835,120]
[330332794,1719259924895,-810.3,0.00043835,120]
[330332795,1719259924924,-500.0,0.00043835,120]
[330332796,1719259924950,-500.0,0.00043835,120]
[330332797,1719259924977,-10357.37,0.00043835,120]
[330332798,1719259925003,-22020.78,0.00043835,120]
[330332799,1719259925029,-500.0,0.00043835,120]
[330332800,1719259925054,-500.0,0.00043835,120]
[330332801,1719259925080,-841.42,0.00043835,120]
[330332802,1719259925105,-13153.35,0.00043835,120]
[330332803,1719259925131,-500.0,0.00043835,120]
[330332804,1719259925158,-1133.73,0.00043835,120]
[330332805,1719259925185,-500.0,0.00043835,120]
[330332806,1719259925214,-574.57,0.00043835,120]
[330332807,1719259925242,-500.0,0.00043835,120]
[330332808,1719259925267,-500.0,0.00043835,120]
[330332809,1719259925294,-946.56,0.00043835,120]
[330332810,1719259925320,-500.0,0.00043835,120]
[330332811,1719259925347,-500.0,0.00043835,120]
[330332812,1719259925378,-7092.86,0.00043835,120]
[330332813,1719259925404,-257.76907411,0.00043835,120]
[330332814,1719259925429,-2001.06,0.00043835,120]
[330332815,1719259925456,-813.3,0.00043835,120]
[330332816,1719259925483,-1907.57,0.00043835,120]
[330332817,1719259925508,-500.0,0.00043835,120]
[330332818,1719259925536,-500.0,0.00043835,120]
[330332819,1719259925560,-500.0,0.00043835,120]
[330332820,1719259925585,-500.0,0.00043835,120]
[330332821,1719259925611,-500.0,0.00043835,120]
[330332822,1719259925636,-15434.26,0.00043835,120]
[330332823,1719259925662,-500.0,0.00043835,120]
[330332824,1719259925687,-6288.36,0.00043835,120]
[330332825,1719259925716,-2393.22,0.00043835,120]
[330332826,1719259925742,-703.59,0.00043835,120]
[330332827,1719259925769,-608.52,0.00043835,120]
[330332828,1719259925796,-500.0,0.00043835,120]
[330332829,1719259925824,-21281.56,0.00043835,120]
[330332830,1719259925850,-500.0,0.00043835,120]
[330332831,1719259925877,-500.0,0.00043835,120]
[330332832,1719259925905,-802.93,0.00043835,120]
[330332833,1719259925931,-21693.08,0.00043835,120]
[330332834,1719259925959,-500.0,0.00043835,120]
[330332835,1719259925986,-1268.88,0.00043835,120]
[330332836,1719259926013,-12227.58,0.00043835,120]
[330332837,1719259926043,-500.0,0.00043835,120]
[330332838,1719259926070,-500.0,0.00043835,120]
[330332839,1719259926096,-6762.38,0.00043835,120]
[330332840,1719259926122,-500.0,0.00043835,120]
[330332841,1719259926148,-500.0,0.00043835,120]
[330332842,1719259926175,-251.37558822,0.00043835,120]
[330332843,1719259926202,-500.0,0.00043835,120]
[330332844,1719259926229,-683.34,0.00043835,120]
[330332845,1719259926259,-500.0,0.00043835,120]
[330332846,1719259926288,-1642.01,0.00043835,120]
[330332847,1719259926315,-626.91,0.00043835,120]
[330332848,1719259926340,-2891.95,0.00043835,120]
[330332849,1719259926366,-500.0,0.00043835,120]
[330332850,1719259926392,-2540.59,0.00043835,120]
[330332851,1719259926418,-3700.38,0.00043835,120]
[330332852,1719259926451,-1382.04,0.00043835,120]
[330332853,1719259926478,-545.09,0.00043835,120]
[330332854,1719259926503,-500.0,0.00043835,120]
[330332855,1719259926528,-228.34849189,0.00043835,120]
[330332856,1719259926552,-2045.13,0.00043835,120]
[330332857,1719259926579,-989.24,0.00043835,120]
[330332858,1719259926605,-500.0,0.00043835,120]
[330332859,1719259926631,-500.0,0.00043835,120]
[330332860,1719259926656,-500.0,0.00043835,120]
[330332861,1719259926682,-6716.96,0.00043835,120]
[330332862,1719259926708,-2775.3,0.00043951,99]
[330332863,1719259926734,-500.0,0.00044109,120]
[330332864,1719259926759,-654.77,0.00044109,120]
[330332865,1719259926784,-500.0,0.00044109,120]
[330332866,1719259926810,-1774.83,0.00044109,120]
[330332867,1719259926835,-500.0,0.00044109,120]
[330332868,1719259926860,-500.0,0.00044109,120]
[330332869,1719259926885,-500.0,0.00044109,120]
[330332870,1719259927097,-500.0,0.00044109,120]
[330332871,1719259927124,-500.0,0.00044109,120]
[330332872,1719259927150,-500.0,0.00044109,120]
[330332873,1719259927176,-800.44,0.00044109,120]
[330332874,1719259927205,-500.0,0.00044109,120]
[330332875,1719259927234,-500.0,0.00044109,120]
[330332876,1719259927261,-500.0,0.00044109,120]
[330332877,1719259927287,-500.0,0.00044109,120]
[330332878,1719259927316,-500.0,0.00044109,120]
[330332879,1719259927343,-635.21,0.00044109,120]
[330332880,1719259927372,-506.82079705,0.00044109,120]
[330332881,1719259927400,-500.0,0.00044109,120]
[330332882,1719259927426,-172.08761028,0.00044109,120]
[330332883,1719259927455,-500.0,0.00044109,120]
[330332884,1719259927497,-1258.6,0.00044109,120]
[330332885,1719259927522,-500.0,0.00044109,120]
[330332886,1719259927547,-281.53812636,0.00044109,120]
[330332887,1719259927572,-500.0,0.00044109,120]
[330332888,1719259927598,-1180.71,0.00044109,120]
[330332889,1719259927623,-1629.26,0.00044109,120]
[330332890,1719259927648,-500.0,0.00044109,120]
[330332891,1719259927674,-500.0,0.00044109,120]
[330332892,1719259927699,-500.0,0.00044109,120]
[330332893,1719259927726,-500.0,0.00044109,120]
[330332894,1719259927752,-1505.86,0.00044109,120]
[330332895,1719259927778,-500.0,0.00044109,120]
[330332896,1719259927804,-592.27602127,0.00044109,120]
[330332897,1719259927829,-250.0,0.00044109,120]
[330332898,1719259927854,-507.36404544,0.00044109,120]
[330332899,1719259927880,-500.0,0.00044109,120]
[330332900,1719259927905,-500.0,0.00044109,120]
[330332901,1719259927931,-500.0,0.00044109,120]
[330332902,1719259927964,-500.0,0.00044109,120]
[330332903,1719259927999,-500.0,0.00044109,120]
[330332904,1719259928026,-1217.5,0.00044109,120]
[330332905,1719259928052,-500.0,0.00044109,120]
[330332906,1719259928077,-500.0,0.00044109,120]
[330332907,1719259928104,-500.0,0.00044109,120]
[330332908,1719259928130,-500.0,0.00044109,120]
[330332909,1719259928157,-500.0,0.00044109,120]
[330332910,1719259928184,-500.0,0.00044109,120]
[330332911,1719259928214,-301.64,0.00044109,120]
[330332912,1719259928242,-500.0,0.00044109,120]
[330332913,1719259928270,-549.91,0.00044109,120]
[330332914,1719259928295,-500.0,0.00044109,120]
[330332915,1719259928321,-500.0,0.00044109,120]
[330332916,1719259928347,-500.0,0.00044109,120]
[330332917,1719259928372,-519.19,0.00044109,120]
[330332918,1719259928397,-500.0,0.00044109,120]
[330332919,1719259928422,-500.0,0.00044109,120]
[330332920,1719259928448,-500.0,0.00044109,120]
[330332921,1719259928490,-500.0,0.00044109,120]
[330332922,1719259928518,-500.0,0.00044109,120]
[330332923,1719259928550,-500.0,0.00044109,120]
[330332924,1719259928576,-500.0,0.00044109,120]
[330332925,1719259928600,-500.0,0.00044109,120]
[330332926,1719259928626,-500.0,0.00044109,120]
[330332927,1719259928652,-500.0,0.00044109,120]
[330332928,1719259928677,-500.0,0.00044109,120]
[330332929,1719259928706,-500.0,0.00044109,120]
[330332930,1719259928733,-500.0,0.00044109,120]
[330332931,1719259928760,-500.0,0.00044109,120]
[330332932,1719259928786,-500.0,0.00044109,120]
[330332933,1719259928810,-500.0,0.00044109,120]
[330332934,1719259928835,-500.0,0.00044109,120]
[330332935,1719259928860,-500.0,0.00044109,120]
[330332936,1719259928886,-525.83439498,0.00044109,120]
[330332937,1719259928912,-500.0,0.00044109,120]
[330332938,1719259928938,-500.0,0.00044109,120]
[330332939,1719259928983,-735.56,0.00044109,120]
[330332940,1719259929012,-500.0,0.00044109,120]
[330332941,1719259929040,-500.0,0.00044109,120]
[330332942,1719259929068,-500.0,0.00044109,120]
[330332943,1719259929095,-500.0,0.00044109,120]
[330332944,1719259929121,-589.50764091,0.00044109,120]
[330332945,1719259929148,-500.0,0.00044109,120]
[330332946,1719259929177,-500.0,0.00044109,120]
[330332947,1719259929204,-500.0,0.00044109,120]
[330332948,1719259929235,-670.34,0.00044109,120]
[330332949,1719259929263,-500.0,0.00044109,120]
[330332950,1719259929290,-1029.32715234,0.00044109,120]
[330332951,1719259929317,-500.0,0.00044109,120]
[330332952,1719259929343,-500.0,0.00044109,120]
[330332953,1719259929375,-500.0,0.00044109,120]
[330332954,1719259929401,-500.0,0.00044109,120]
[330332955,1719259929428,-500.0,0.00044109,120]
[330332956,1719259929454,-500.0,0.00044109,120]
[330332957,1719259929497,-500.0,0.00044109,120]
[330332958,1719259929526,-500.0,0.00044109,120]
[330332959,1719259929553,-500.0,0.00044109,120]
[330332960,1719259929580,-574.08876575,0.00044109,120]
[330332961,1719259929607,-500.0,0.00044109,120]
[330332962,1719259929635,-230.19953445,0.00044109,120]
[330332963,1719259929662,-500.0,0.00044109,120]
[330332964,1719259929689,-500.0,0.00044109,120]
[330332965,1719259929718,-500.0,0.00044109,120]
[330332966,1719259929745,-2624.07,0.00044109,120]
[330332967,1719259929776,-500.0,0.00044109,120]
[330332968,1719259929802,-500.0,0.00044109,120]
[330332969,1719259929829,-500.0,0.00044109,120]
[330332970,1719259929856,-631.34,0.00044109,120]
[330332971,1719259929882,-500.0,0.00044109,120]
[330332972,1719259929909,-500.0,0.00044109,120]
[330332973,1719259929937,-500.0,0.00044109,120]
[330332974,1719259931366,-520.44721614,0.00044109,120]
[330332975,1719259931398,-500.0,0.00044109,120]
[330332976,1719259931426,-546.62,0.00044109,120]
[330332977,1719259931453,-500.0,0.00044109,120]
[330332978,1719259931488,-500.0,0.00044109,120]
[330332979,1719259931516,-500.0,0.00044109,120]
[330332980,1719259931542,-500.0,0.00044109,120]
[330332981,1719259931569,-1775.35,0.00044109,120]
[330332982,1719259931598,-500.0,0.00044109,120]
[330332983,1719259931626,-500.0,0.00044109,120]
[330332984,1719259931655,-500.0,0.00044109,120]
[330332985,1719259931683,-500.0,0.00044109,120]
[330332986,1719259931719,-500.0,0.00044109,120]
[330332987,1719259931749,-500.0,0.00044109,120]
[330332988,1719259931779,-500.0,0.00044109,120]
[330332989,1719259931807,-500.0,0.00044109,120]
[330332990,1719259931834,-271.55543748,0.00044109,120]
[330332991,1719259931860,-500.0,0.00044109,120]
[330332992,1719259931888,-500.0,0.00044109,120]
[330332993,1719259931918,-500.0,0.00044109,120]
[330332994,1719259931945,-500.0,0.00044109,120]
[330332995,1719259931978,-500.0,0.00044109,120]
[330332996,1719259932006,-500.0,0.00044109,120]
[330332997,1719259932033,-500.0,0.00044109,120]
[330332998,1719259932062,-500.0,0.00044109,120]
[330332999,1719259932089,-500.0,0.00044109,120]
[330333000,1719259932116,-500.0,0.00044109,120]
[330333001,1719259932144,-500.0,0.00044109,120]
[330333002,1719259932172,-500.0,0.00044109,120]
[330333003,1719259932200,-500.0,0.00044109,120]
[330333004,1719259932234,-500.0,0.00044109,120]
[330333005,1719259932261,-500.0,0.00044109,120]
[330333006,1719259932290,-500.0,0.00044109,120]
[330333007,1719259932318,-597.75,0.00044109,120]
[330333008,1719259932350,-1005.97,0.00044109,120]
[330333009,1719259932378,-500.0,0.00044109,120]
[330333010,1719259932405,-500.0,0.00044109,120]
[330333011,1719259932432,-500.0,0.00044109,120]
[330333012,1719259932458,-500.0,0.00044109,120]
[330333013,1719259932496,-1347.71,0.00044109,120]
[330333014,1719259932523,-500.0,0.00044109,120]
[330333015,1719259932550,-500.0,0.00044109,120]
[330333016,1719259932577,-500.0,0.00044109,120]
[330333017,1719259932604,-500.0,0.00044109,120]
[330333018,1719259932631,-1324.15,0.00044109,120]